Cogmind - Beta 9.4 @@@ ROGUE MODE // 2020.03.12 @ 20:09:44 Player: Dakka Result: Destroyed by Y-45 Defender with Heavy Assault Rifle Performance ------------- Evolutions (1) 500 Regions Visited (2) 400 Robots Destroyed (28) 140 Value Destroyed (537) 537 Prototype IDs (7) 140 Alien Tech Used (0) 0 Bonus (8) 8 TOTAL SCORE: 1725 Bonus ------- High Alert Combat Kills 8 Cogmind --------- Core Integrity 0/400 Matter 130/300 Energy 100/100 System Corruption 16% Temperature Cool (9) Movement Core (100) Ox1 Location -9/Materials Parts ------- > --- POWER (1) -------- (None) > --- PROPULSION (3) --- (None) > --- UTILITY (3) ------ Improved ECM Suite > --- WEAPON (2) ------- Mini Grenade Launcher Mace > --- INVENTORY (4) ---- Heat Sink Peak State ------------ > --- POWER ------------ Ion Engine > --- PROPULSION ------- Hover Unit Hover Unit > --- UTILITY ---------- Heat Sink Maneuvering Thrusters Hacking Suite > --- WEAPON ----------- Improved Medium Laser Mining Claw > --- INVENTORY -------- Improved ECM Suite Mini Grenade Launcher Mace [Rating: 14] Favorites ----------- Power Ion Engine Engine Ion Engine Propulsion Compact Wheel Treads Light Treads Wheel Compact Wheel Hover Unit Hover Unit Flight Unit Flight Unit Utility Heat Sink Device Heat Sink Storage Medium Storage Unit Hackware Hacking Suite Weapon Mining Claw Energy Gun Small Laser Launcher Mini Grenade Launcher Impact Weapon Mace Slashing Weapon Mining Claw Build | -11 -10 -9 ------- Run | Scr Mat Mat Slots Evolved 2 | . . 2 Power . | . . . Propulsion 1 | . . 1 Utility 1 | . . 1 Weapon . | . . . Parts Attached 33 | 5 14 14 Power 5 | 1 1 3 Engine 5 | 1 1 3 Core . | . . . Reactor . | . . . Propulsion 10 | 2 3 5 Treads 2 | . . 2 Leg . | . . . Wheel 3 | 2 1 . Hover 3 | . . 3 Flight 2 | . 2 . Utility 8 | 1 4 3 Device 5 | . 3 2 Storage 2 | 1 1 . Processor . | . . . Hackware 1 | . . 1 Protection . | . . . Artifact . | . . . Weapon 10 | 1 6 3 Energy Gun 2 | 1 . 1 Energy Cannon . | . . . Ballistic Gun . | . . . Ballistic Cannon . | . . . Launcher 5 | . 4 1 Special Weapon . | . . . Impact Weapon 2 | . 1 1 Slashing Weapon 1 | . 1 . Piercing Weapon . | . . . Special Melee Weapon . | . . . Unidentified Prototypes 2 | . . 2 Parts Lost 13 | . 1 12 Power 2 | . . 2 Propulsion 5 | . . 5 Utility 4 | . 1 3 Weapon 2 | . . 2 Highest Loss Streak 8 | . 1 8 Average Slot Usage (%) 77 | . 92 58 Engine 12 | . 14 9 Treads 4 | . . 9 Wheel 14 | . 25 . Hover 4 | . . 11 Flight 1 | . 2 1 Device 12 | . 12 12 Storage 7 | . 12 . Hackware 1 | . . 3 Launcher 6 | . 11 . Impact Weapon 5 | . 9 . Slashing Weapon 5 | . 1 10 Naked Turns . | . . . Heaviest Build 17 | 10 17 11 Greatest Support 40 | 26 32 40 Greatest Overweight (x) 3 | . . 3 Average Overweight (x) . | . . . Largest Inventory Capacity 8 | 6 8 4 Average Capacity 5 | 5 6 4 Most Carried 7 | 4 7 4 Average Carried 3 | . 4 2 Final Capacity 6 | 6 4 4 Final Carried 4 | . 4 1 Class Distribution -------------------- 100% | Mutant Dominant Class ---------------- Mutant | -10/Materials Mutant | -9/Materials Resources | -11 -10 -9 ----------- Run | Scr Mat Mat Matter Collected 509 | 189 157 163 Remotely . | . . . Salvage Created 622 | . 326 296 Parts 46 | . 23 23 Haulers Intercepted 2 | . 2 . Recyclers Shooed 1 | . 1 . Parts Field Recycled . | . . . Retrieved Matter . | . . . Parts Self-Destructed . | . . . Prevented . | . . . Kills | -11 -10 -9 ------- Run | Scr Mat Mat Combat Hostiles Destroyed 16 | . 10 6 Melee 6 | . 1 5 AOE 10 | . 9 1 Classes Destroyed 9 | . 7 2 Worker 4 | . 2 2 Builder 1 | . . 1 Hauler 2 | . 2 . Recycler 2 | . 1 1 Operator 2 | . 2 . Watcher 1 | . 1 . Swarmer 9 | . 6 3 Grunt 4 | . 4 . Sentry 3 | . . 3 Best Kill Streak 7 | . 6 7 Combat Bots Only 3 | . 3 3 Max Kills in Single Turn 3 | . 3 3 Gunslinging . | . . . Exploded 2 | . 2 1 Melee 1 | . 1 1 Uniques/NPCs Destroyed . | . . . Combat | -11 -10 -9 -------- Run | Scr Mat Mat Damage Taken 1486 | . 278 1208 Core 493 | . 88 405 Absorbed by Shields . | . . . Core Remaining (%) 82 | 100 64 . Volleys Fired 29 | . 18 11 Largest 1 | . 1 1 Hottest 56 | . 30 56 Shots Fired 29 | . 18 11 Gun 9 | . . 9 Cannon . | . . . Launcher 20 | . 18 2 Special . | . . . Kinetic . | . . . Thermal 9 | . . 9 Explosive 20 | . 18 2 Electromagnetic . | . . . Robot Hit Streak 5 | . 2 5 Robot Miss Streak 4 | . 4 1 Penetration Max . | . . . Secondary Targets . | . . . Shots Hit Robots 42 | . 20 22 Core Hits 40 | . 26 14 Critical Hits . | . . . Critical Kills . | . . . Critical Parts Destroyed . | . . . Melee Attacks 73 | . 30 43 Impact 35 | . 28 7 Slashing 38 | . 2 36 Piercing . | . . . Sneak Attacks 3 | . 3 . Combat Hostiles . | . . . Follow-up Attacks . | . . . Damage Inflicted 2342 | . 1660 682 Guns 153 | . . 153 Cannons . | . . . Explosions 1344 | . 1096 248 Melee 845 | . 564 281 Ramming . | . . . Kinetic . | . . . Thermal 153 | . . 153 Explosive 1344 | . 1096 248 Electromagnetic . | . . . Impact 576 | . 434 142 Slashing 269 | . 130 139 Piercing . | . . . Highest Corruption 16 | . . 16 Average Corruption 16 | . . 16 Corruption Purged . | . . . Effects 16 | . . 16 Message Errors 1 | . . 1 Matter Fused 2 | . . 2 Heat Flow Errors 2 | . . 2 Energy Discharges 3 | . . 3 Data Loss (minor) 1 | . . 1 Misdirections 2 | . . 2 Targeting Errors 5 | . . 5 Overload Shots . | . . . Overflow Damage 141 | . 141 . Projectiles . | . . . Explosions 24 | . 24 . Melee 117 | . 117 . Knockbacks 3 | . 2 1 Impact 3 | . 2 1 Kinetic . | . . . Secondary . | . . . Self-Inflicted Damage 88 | . 88 . Shots 3 | . 3 . Rammed . | . . . Targets Rammed . | . . . Kicked . | . . . Crushed . | . . . Highest Temperature 178 | . 1 178 Average Temperature 58 | . 1 60 Received Heat Transfer 237 | . 66 171 Siege Activations . | . . . Robots Corrupted . | . . . Combat Hostiles . | . . . Parts Fried 1 | . 1 . Impact Corruptions 5 | . 4 1 Robots Melted . | . . . Combat Hostiles . | . . . Parts Melted 1 | . . 1 Heat Transferred 333 | . . 333 Parts Sabotaged . | . . . Parts Stolen . | . . . Parts Stripped . | . . . Power Chain Reactions . | . . . Missiles Intercepted . | . . . Alert | -11 -10 -9 ------- Run | Scr Mat Mat Peak Influence 664 | . 664 396 Average Influence 326 | . 370 294 Maximum Alert Level 2 | . 2 1 Low Security (%) 16 | 100 23 . Level 1 60 | . 33 100 Level 2 23 | . 42 . Level 3 . | . . . Level 4 . | . . . Level 5 . | . . . High Security . | . . . Max Security . | . . . Squads Dispatched 4 | . 4 . Investigation 1 | . 1 . Extermination . | . . . Reinforcement 3 | . 3 . Assault . | . . . Garrison . | . . . Intercept . | . . . Construction Impeded . | . . . Haulers Reinforced . | . . . Stealth | -11 -10 -9 --------- Run | Scr Mat Mat Distress Signals 3 | . 2 1 Communications Jammed . | . . . Distress Signals . | . . . Times Spotted 41 | . 27 14 Peak Tracking Total 9 | . 6 9 Tactical Retreats 8 | . 6 2 Traps | -11 -10 -9 ------- Run | Scr Mat Mat Traps Triggered 1 | . 1 . Indirectly . | . . . Trap Hack Attempts . | . . . Triggered . | . . . Disarmed 6 | . 6 . Reprogrammed . | . . . Reused . | . . . Traps Extracted . | . . . Installed . | . . . Triggered . | . . . Machines | -11 -10 -9 ---------- Run | Scr Mat Mat Machines Disabled 12 | . 11 1 Max in Single Turn 4 | . 4 1 Machines Sabotaged . | . . . Garrisons Compromised . | . . . Overloaded Fab Kills . | . . . Fab Network Shutdowns . | . . . Hacking | -11 -10 -9 --------- Run | Scr Mat Mat Machines Accessed 6 | . 5 1 Terminals 5 | . 4 1 Fabricators . | . . . Repair Stations . | . . . Recycling Units 1 | . 1 . Scanalyzers . | . . . Garrison Access . | . . . Total Hacks 11 | . 9 2 Successful 9 | . 7 2 Failed 2 | . 2 . Catastrophic 1 | . 1 . Database Lockouts . | . . . Manual 6 | . 5 1 Terminals 10 | . 8 2 Fabricators . | . . . Repair Stations . | . . . Recycling Units 1 | . 1 . Scanalyzers . | . . . Garrison Access . | . . . Terminal Hacks 6 | . 4 2 Record 1 | . 1 . Prototype ID Bank 2 | . 1 1 Disarm Traps 1 | . 1 . Transport Status 1 | . . 1 Hauler Manifests 1 | . 1 . Fabricator Hacks . | . . . Repair Station Hacks . | . . . Recycling Unit Hacks 1 | . 1 . Report Inventory 1 | . 1 . Scanalyzer . | . . . Garrison Access Hacks . | . . . Unauthorized Hacks 4 | . 4 . Terminals 2 | . 2 . Assimilate 2 | . 2 . Fabricators . | . . . Repair Stations . | . . . Recycling Units . | . . . Scanalyzers . | . . . Garrison Access . | . . . Data Cores Recovered . | . . . Used . | . . . Hacking Detections 3 | . 2 1 Full Trace Events . | . . . Feedback Events . | . . . Feedback Blocked . | . . . Robot Schematics Acquired . | . . . Robots Built . | . . . Matter . | . . . Time . | . . . Total Robot Build Rating . | . . . Part Schematics Acquired . | . . . Parts Built . | . . . Matter . | . . . Time . | . . . Total Part Build Rating . | . . . Parts Repaired . | . . . Time . | . . . Parts Recycled . | . . . Recycled Matter . | . . . Retrieved Matter . | . . . Retrieved Components . | . . . Parts Scanalyzed . | . . . Part Schematics Acquired . | . . . Parts Damaged . | . . . Bothacking | -11 -10 -9 ------------ Run | Scr Mat Mat Used RIF Installer . | . . . Robots Hacked . | . . . Non-combat . | . . . Combat . | . . . Robot Hacks Applied . | . . . Relay Couplers Released . | . . . Robots Rewired . | . . . Allies Hacked . | . . . Hacks Repelled . | . . . Allies | -11 -10 -9 -------- Run | Scr Mat Mat Total Allies . | . . . Largest Group . | . . . Highest-Rated Group . | . . . Highest-Rated Ally . | . . . Total Orders . | . . . Ally Attacks . | . . . Total Damage . | . . . Kills . | . . . Allies Corrupted . | . . . Allies Melted . | . . . Intel | -11 -10 -9 ------- Run | Scr Mat Mat Robot Analysis Total . | . . . Derelict Logs Recovered . | . . . Drone Launches . | . . . Drone Recoveries . | . . . Exploration | -11 -10 -9 ------------- Run | Scr Mat Mat Turns Passed 895 | 30 487 378 Spaces Moved 596 | 27 367 202 Core 23 | 9 . 14 Treads 44 | . . 44 Legs . | . . . Wheels 307 | 18 289 . Hover 134 | . . 134 Flight 88 | . 78 10 Fastest Speed 37 | 50 37 37 Average Speed 84 | 76 86 82 Slowest Speed 200 | 90 100 200 Overloaded Moves . | . . . Propulsion Burnouts . | . . . Robots Hopped . | . . . Cave-ins Triggered 1 | . . 1 Exploration Rate (%) 35 | 3 79 23 Regions Visited 2 Branch Regions . Pre-discovered Areas . | . . . Known Exits Taken . | . . . Unknown Exits Taken 2 | 1 1 . Scrap Searched . | . . . Spaces Dug 15 | . 2 13 Terrain Destroyed 128 | . 94 34 Melee 15 | . 2 13 Projectile . | . . . AOE 113 | . 92 21 Actions | -11 -10 -9 --------- Run | Scr Mat Mat Total 830 | 35 475 320 Wait 61 | . 23 38 Move 594 | 26 366 202 Hop . | . . . Pick Up 25 | 4 13 8 Fast Attach 3 | 1 . 2 Attach 20 | 4 6 10 Detach 2 | . 2 . Swap 10 | . 8 2 Drop 13 | . 9 4 Fire 29 | . 18 11 Melee 73 | . 30 43 Ram . | . . . Kick . | . . . Crush . | . . . Escape Stasis . | . . . Rewire . | . . . Trap . | . . . Miscellaneous . | . . . Route ------- -11/Scrapyard -10/Materials (discovered 3 exits: *Mat x2 / [*Min]) -9/Materials History --------- Turn | Location | Event 8 | -11/Scrapyard | Discovered new exit (range 16) 31 | -11/Scrapyard | Entered Materials 97 | -10/Materials | Discovered new exit (range 15) 317 | -10/Materials | Build established: Mutant 381 | -10/Materials | Discovered new exit (range 15) 515 | -10/Materials | Discovered new exit (range 9) 518 | -10/Materials | Entered another Materials area 518 | -9/Materials | Evolved 2 slots: Propulsion x1, Utility x1 666 | -9/Materials | Crushed by falling debris 666 | -9/Materials | System corruption reached 10% 692 | -9/Materials | Core integrity fell below 50% 705 | -9/Materials | Lost 8 parts (1p3n3u1w) 892 | -9/Materials | Core integrity fell below 20% 896 | -9/Materials | Destroyed by Y-45 Defender with Heavy Assault Rifle Last Messages --------------- 00874_ S-10 Pest system corrupted by crushing effect. 00874_ S-10 Pest knocked back. 00879_ S-10 Pest destroyed. 00880_ K-01 Serf collects debris. 00881_ Lgt. Treads destroyed. 00881_ Imp. Ion Engine destroyed. 00884_ Lgt. Treads destroyed. 00886_ S-10 Pest destroyed. 00891_ R-06 Scavenger collects Lgt. Assault Rifle. 00892_ K-01 Serf collects debris. 00893_ Destroyed Lgt. Ion Engine. 00893_ R-06 Scavenger destroyed. 00893_ S-10 Pest destroyed. 00894_ System corrupted: Matter fused (-8). 00894_ U-05 Engineer builds a Door. 00895_ System corrupted: Mni. Grenade Launcher targeting data glitched. 00895_ K-01 Serf destroyed. 00895_ U-05 Engineer destroyed. 00895_ K-01 Serf destroyed. 00895_ Purification Channel disabled. Map ----- +----------------------------------------------------+ | ##???????????????????????????????????????????????? | | ###?????????????????????????????????????????????? | | #?????????????????????????????????????????????? | | #?????????????????????????????????????????????? | | #?????????????????????????????????????????????? | | != #?????????????????????????????????????????????? | | == #?????????????????????????????????????????????? | | = ####?#######??????????????????????????????????? | | ###### #######+#######????????????????????? | | ######### ?????????????????? | | !!*## ?????????????????? | | [! ## ?????????????????? | | ## #######+####### ??????????????????? | | !### ##?????????? ??????????????????????? | | ##+####### #????? ???? ??????????????????????? | | #????? u ??????????????????????? | | #?#??" """"" ??????????????????????? | | #?# """" """" ??????????????????????? | | ##### #?# """ " " ??????????????????????? | | ????# #### ##?????????????????????? | | ????/ =%!= ???????????? ????????? | | ????####### ######!|% ]##???#+## ????????? | | ??????????# #????# !!Y=*= ?? #???????? | | ??????????# #????# !! !%!# +???????? | | ??????????#+???????# !! ![*+% #???????? | | ????????????????????# s*@%# #???????? | | ????????????????????###/#### #### #???????? | | ??????????????????????#?????? ""????????????????? | | ?????????????????????????????? "???????????????? | | ??????????????????????????????? |"#??????????????? | | ??????????????????????????????? ""#??????????????? | | ????????????????????????????????!"#??????????????? | | ?????????????????????????????????"???????????????? | | ??????????????????????????????????#??????????????? | | ?????????????????????????????????????????????????? | | ####?????????????????????????????????????????????? | | #?????????????????????????????????????????????? | | #?????????????????????????????????????????????? | | #?????????????????????????????????????????????? | | #?????????????????????????????????????????????? | | #?????????????????????????????????????????????? | | ####?????????????????????????????????????????????? | | ########+????????????????????????????????????????? | | + #??????????????????????????????????? | | ########+????????????????????????????????????????? | | #????????????????????????????????????????????????? | | #????????????????????????????????????????????????? | | #????????????????????????????????????????????????? | | #????????????????????????????????????????????????? | | #????????????????????????????????????????????????? | +----------------------------------------------------+ Best States ------------- Heat Dissipation 38 Energy Generation 12 Energy Capacity 265 Matter Stores 239 Matter Capacity 300 Sight Range 16 Robot Scan Range 10 Terrain Scan Density 10 ECM Strength 2 Evasion (%) 62 Recoil Reduction 2 Offensive Hacking 10 Item Schematics ----------------- None Robot Schematics ------------------ None Fabricated ------------ Nothing Alien Tech Used ----------------- None Achievements -------------- Part-time Excavator Shopping List Unlikely Earthworm Challenges ------------ None Game ------ Seed SpreadCentriumReplicator Manual? 0 Play Time 00:22:41 Cumulative 3.6 hours Start 2020.03.12 @ 19:48:14 End 2020.03.12 @ 20:09:44 Sessions 1 Manual Loads 0 Difficulty Rogue Special Mode None Game No. 5 Rogue 5 Adventurer 0 Explorer 0 Win Type - Total 0 Types 0/0/0/0/0/0/0 Lore% 4 Gallery% 9 Achievement% 10 Wizard Run 0 Options --------- ASCII 0 Keyboard 0 Movement Mouse Keybinds 0 Fullscreen 1 Font 12/Smallcaps Map View 83x54 Tactical HUD 1 Map Filters NONE Filters NONE Steam 1 RUN: 19e40b5e-9a60-41f6-b74d-bbb64d96ebd6